fUSD/lending_fUSD_20250806
["ID","MTS","AMOUNT","RATE_DAILY","PERIOD"]
[377639503,1754472643122,-163.703054,0.00032872,7]
[377639504,1754472643133,-191.422657,0.00032872,7]
[377639505,1754472643143,-151.0,0.00032872,7]
[377639506,1754472643152,-151.0,0.00032872,7]
[377639507,1754472643164,-151.0,0.00032872,7]
[377639508,1754472643174,-151.0,0.00032872,7]
[377639509,1754472643186,-159.892084,0.00032872,7]
[377639510,1754472643196,-153.422784,0.00032872,7]
[377639511,1754472643206,-151.0,0.00032872,7]
[377639512,1754472643216,-152.203488,0.00032872,7]
[377639513,1754472643227,-284.186404,0.00032872,7]
[377639514,1754472643236,-284.186404,0.00032872,7]
[377639515,1754472643246,-151.0,0.00032872,7]
[377639516,1754472643256,-500.0,0.00032873,5]
[377639517,1754472643267,-500.0,0.00032873,5]
[377639520,1754472643278,-501.23469655,0.00032873,5]
[377639522,1754472643287,-278.094556,0.00032875,7]
[377639523,1754472643297,-151.0,0.00032875,7]
[377639524,1754472643307,-150.0,0.00032875,2]
[377639525,1754472643317,-437.0,0.00032875,10]
[377639526,1754472643327,-500.0,0.00032875,10]
[377639527,1754472643337,-500.0,0.00032875,7]
[377639528,1754472643349,-150.0,0.00032875,2]
[377639529,1754472643360,-500.0,0.00032875,10]
[377639530,1754472643371,-150.0,0.00032875,2]
[377639531,1754472643382,-597.0,0.00032875,10]
[377639532,1754472643392,-866.15197159,0.00032875,10]
[377639533,1754472643403,-229.0,0.00032876,5]
[377639534,1754472643413,-58191.25405529,0.00032876,2]
[377639535,1754472643423,-152.056828,0.00032876,7]
[377639536,1754472643434,-365.514428,0.00032876,7]
[377639537,1754472643445,-365.514428,0.00032876,7]
[377639538,1754472643456,-365.514428,0.00032876,7]
[377639539,1754472643467,-365.514428,0.00032876,7]
[377639540,1754472643477,-365.514428,0.00032876,7]
[377639541,1754472643487,-365.514428,0.00032876,7]
[377639542,1754472643496,-365.514428,0.00032876,7]
[377639543,1754472643505,-365.514428,0.00032876,7]
[377639544,1754472643515,-365.514428,0.00032876,7]
[377639545,1754472643524,-365.514428,0.00032876,7]
[377639546,1754472643857,-365.514428,0.00032876,7]
[377639547,1754472643867,-365.514428,0.00032876,7]
[377639548,1754472643876,-365.514428,0.00032876,7]
[377639549,1754472643887,-365.514428,0.00032876,7]
[377639550,1754472643899,-365.514428,0.00032876,7]
[377639551,1754472643910,-365.514428,0.00032876,7]
[377639552,1754472643919,-365.514428,0.00032876,7]
[377639553,1754472643928,-365.514428,0.00032876,7]
[377639554,1754472643938,-365.514428,0.00032876,7]
[377639555,1754472643948,-365.514424,0.00032876,7]
[377639556,1754472643957,-166.945974,0.00032876,14]
[377639557,1754472643966,-2500.0,0.00032876,14]
[377639558,1754472643976,-151.0,0.00032876,7]
[377639559,1754472643985,-151.0,0.00032876,7]
[377639560,1754472643995,-151.0,0.00032876,7]
[377639561,1754472644003,-151.0,0.00032876,7]
[377639562,1754472644012,-151.131925,0.00032876,5]
[377639563,1754472644022,-151.0,0.00032876,7]
[377639564,1754472644032,-151.0,0.00032876,7]
[377639565,1754472644042,-151.0,0.00032876,7]
[377639566,1754472644051,-151.0,0.00032876,7]
[377639567,1754472644060,-151.0,0.00032876,7]
[377639568,1754472644070,-151.0,0.00032876,7]
[377639569,1754472644080,-151.0,0.00032876,7]
[377639570,1754472644091,-151.0,0.00032876,7]
[377639571,1754472644100,-151.0,0.00032876,7]
[377639572,1754472644109,-151.0,0.00032876,7]
[377639573,1754472644119,-184.699812,0.00032876,7]
[377639574,1754472644129,-152.37491,0.00032876,7]
[377639575,1754472644138,-153.776993,0.00032876,7]
[377639576,1754472644147,-161.796285,0.00032876,7]
[377639577,1754472644157,-151.0,0.00032876,7]
[377639578,1754472644167,-152.800555,0.00032876,7]
[377639579,1754472644177,-151.0,0.00032876,7]
[377639580,1754472644187,-151.0,0.00032876,7]
[377639581,1754472644197,-151.0,0.00032876,7]
[377639582,1754472644207,-160.500847,0.00032876,7]
[377639583,1754472644216,-189.38414,0.00032876,7]
[377639584,1754472644227,-490.49721735,0.00032876,14]
[377639585,1754472644237,-400.0,0.00032876,14]
[377639586,1754472644247,-157.046809,0.00032876,7]
[377639587,1754472644257,-400.0,0.00032876,14]
[377639588,1754472644268,-400.0,0.00032876,14]
[377639589,1754472644278,-151.0,0.00032876,7]
[377639590,1754472644287,-151.0,0.00032876,7]
[377639591,1754472644297,-151.0,0.00032876,7]
[377639592,1754472644307,-151.0,0.00032876,7]
[377639593,1754472644316,-151.0,0.00032876,7]
[377639594,1754472644325,-151.0,0.00032876,7]
[377639595,1754472644334,-151.0,0.00032876,7]
[377639596,1754472644346,-400.0,0.00032876,14]
[377639597,1754472644355,-151.0,0.00032876,7]
[377639598,1754472644364,-151.0,0.00032876,7]
[377639599,1754472644373,-237.495615,0.00032876,7]
[377639600,1754472644383,-151.0,0.00032876,7]
[377639601,1754472644392,-151.0,0.00032876,7]
[377639602,1754472644401,-151.0,0.00032876,7]
[377639603,1754472644411,-151.0,0.00032876,7]
[377639604,1754472644420,-151.0,0.00032876,7]
[377639605,1754472644430,-151.0,0.00032876,7]
[377639606,1754472644439,-151.0,0.00032876,7]
[377639607,1754472644449,-151.0,0.00032876,7]
[377639608,1754472644458,-151.0,0.00032876,7]
[377639609,1754472644467,-400.0,0.00032876,14]
[377639610,1754472644477,-151.0,0.00032876,7]
[377639611,1754472644486,-151.0,0.00032876,7]
[377639612,1754472644495,-151.0,0.00032876,7]
[377639613,1754472644505,-151.0,0.00032876,7]
[377639614,1754472644514,-151.0,0.00032876,7]
[377639615,1754472644524,-400.02871113,0.00032876,14]
[377639616,1754472644534,-296.634418,0.00032876,7]
[377639617,1754472644543,-400.0,0.00032876,14]
[377639618,1754472644552,-400.0,0.00032876,14]
[377639619,1754472644562,-437.42865923,0.00032876,14]
[377639620,1754472644571,-400.0,0.00032876,14]
[377639621,1754472644580,-400.0,0.00032876,14]
[377639622,1754472644591,-156.751712,0.00032876,7]
[377639623,1754472644600,-400.0,0.00032876,14]
[377639624,1754472644610,-400.0,0.00032876,14]
[377639625,1754472644620,-151.0,0.00032876,7]
[377639626,1754472644630,-151.0,0.00032876,7]
[377639627,1754472644639,-400.0,0.00032876,14]
[377639628,1754472644648,-400.0,0.00032876,14]
[377639629,1754472644658,-151.0,0.00032876,7]
[377639630,1754472644667,-151.0,0.00032876,7]
[377639631,1754472644677,-151.0,0.00032876,7]
[377639632,1754472644686,-151.0,0.00032876,7]
[377639633,1754472644695,-400.0,0.00032876,14]
[377639634,1754472644705,-151.0,0.00032876,7]
[377639635,1754472644714,-151.0,0.00032876,7]
[377639636,1754472644724,-151.145765,0.00032876,7]
[377639637,1754472644734,-400.0,0.00032876,14]
[377639638,1754472644745,-400.0,0.00032876,14]
[377639639,1754472644754,-351.79705418,0.00032876,14]
[377639640,1754472644764,-400.0,0.00032876,14]
[377639641,1754472644773,-400.0,0.00032876,14]
[377639642,1754472644786,-284.268163,0.00032876,7]
[377639643,1754472644795,-400.0,0.00032876,14]
[377639644,1754472644804,-400.0,0.00032876,14]
[377639645,1754472644813,-400.0,0.00032876,14]
[377639646,1754472644823,-400.0,0.00032876,14]
[377639647,1754472644834,-400.0,0.00032876,14]
[377639648,1754472644843,-400.0,0.00032876,14]
[377639649,1754472644853,-400.0,0.00032876,14]
[377639650,1754472644863,-461.2552937,0.00032876,14]
[377639651,1754472644872,-400.0,0.00032876,14]
[377639652,1754472644882,-400.0,0.00032876,14]
[377639653,1754472644891,-400.0,0.00032876,14]
[377639654,1754472644900,-400.0,0.00032876,14]
[377639655,1754472644910,-400.0,0.00032876,14]
[377639656,1754472644920,-400.0,0.00032876,2]
[377639657,1754472644930,-151.0,0.00032876,7]
[377639658,1754472644939,-157.802744,0.00032876,7]
[377639659,1754472644949,-480.99112657,0.00032876,14]
[377639660,1754472644960,-151.0,0.00032876,7]
[377639661,1754472644971,-151.0,0.00032876,7]
[377639662,1754472644982,-151.0,0.00032876,7]
[377639663,1754472644993,-151.0,0.00032876,7]
[377639664,1754472645002,-151.0,0.00032876,7]
[377639665,1754472645012,-400.0,0.00032876,14]
[377639666,1754472645023,-151.0,0.00032876,7]
[377639667,1754472645034,-151.0,0.00032876,7]
[377639668,1754472645043,-151.0,0.00032876,7]
[377639669,1754472645052,-151.0,0.00032876,7]
[377639670,1754472645062,-154.264953,0.00032876,7]
[377639671,1754472645074,-151.0,0.00032876,7]
[377639672,1754472645083,-198.24065,0.00032876,7]
[377639673,1754472645093,-400.0,0.00032876,14]
[377639674,1754472645102,-400.0,0.00032876,14]
[377639675,1754472645112,-400.0,0.00032876,14]
[377639676,1754472645122,-400.0,0.00032876,14]
[377639677,1754472645131,-400.0,0.00032876,14]
[377639678,1754472645140,-400.0,0.00032876,14]
[377639679,1754472645150,-400.0,0.00032876,14]
[377639680,1754472645160,-400.0,0.00032876,14]
[377639681,1754472645170,-963.88,0.00032876,14]
[377639682,1754472645179,-400.0,0.00032876,14]
[377639683,1754472645190,-400.0,0.00032876,14]
[377639684,1754472645200,-400.0,0.00032876,14]
[377639685,1754472645210,-400.0,0.00032876,14]
[377639686,1754472645219,-1257.0,0.00032876,14]
[377639687,1754472645228,-400.0,0.00032876,14]
[377639688,1754472645239,-527.85,0.00032876,14]
[377639689,1754472645250,-1771.27,0.00032876,14]
[377639690,1754472645262,-1912.82,0.00032876,14]
[377639691,1754472645277,-151.0,0.00032876,7]
[377639692,1754472645286,-151.0,0.00032876,7]
[377639693,1754472645296,-158.789933,0.00032876,7]
[377639694,1754472645307,-500.0,0.00032876,14]
[377639695,1754472645317,-400.0,0.00032876,14]
[377639696,1754472645326,-400.0,0.00032876,14]
[377639697,1754472645336,-400.0,0.00032876,14]
[377639698,1754472645346,-400.0,0.00032876,14]
[377639699,1754472645356,-403.19223395,0.00032876,14]
[377639700,1754472645365,-400.0,0.00032876,14]
[377639701,1754472645374,-400.0,0.00032876,14]
[377639702,1754472645384,-400.0,0.00032876,14]
[377639703,1754472645393,-1043.82,0.00032876,14]
[377639704,1754472645402,-400.0,0.00032876,14]
[377639705,1754472645412,-401.15437427,0.00032876,14]
[377639706,1754472645421,-1370.52,0.00032876,14]
[377639707,1754472645431,-400.0,0.00032876,14]
[377639708,1754472645440,-1807.99,0.00032876,14]
[377639709,1754472645450,-400.0,0.00032876,14]
[377639710,1754472645459,-400.0,0.00032876,14]
[377639711,1754472645469,-151.0,0.00032876,7]
[377639712,1754472645478,-400.0,0.00032876,14]
[377639713,1754472645487,-151.0,0.00032876,7]
[377639714,1754472645497,-151.0,0.00032876,7]
[377639715,1754472645507,-1119.95,0.00032876,14]
[377639716,1754472645516,-151.0,0.00032876,7]
[377639717,1754472645526,-151.0,0.00032876,7]
[377639718,1754472645536,-151.0,0.00032876,7]
[377639719,1754472645545,-151.0,0.00032876,7]
[377639720,1754472645555,-430.84,0.00032876,14]
[377639721,1754472645565,-151.0,0.00032876,7]
[377639722,1754472645575,-400.0,0.00032876,14]
[377639723,1754472645584,-151.0,0.00032876,7]
[377639724,1754472645594,-151.0,0.00032876,7]
[377639725,1754472645603,-947.09,0.00032876,2]
[377639726,1754472645613,-151.0,0.00032876,7]
[377639727,1754472645623,-151.0,0.00032876,7]
[377639728,1754472645634,-547.69,0.00032876,14]
[377639729,1754472645644,-792.38,0.00032876,14]
[377639730,1754472645655,-151.0,0.00032876,7]
[377639731,1754472645665,-262.370721,0.00032876,7]
[377639732,1754472645675,-1777.48,0.00032876,14]
[377639733,1754472645685,-902.95,0.00032876,14]
[377639734,1754472645695,-400.71370245,0.00032876,14]
[377639735,1754472645705,-1100.38,0.00032876,14]
[377639736,1754472645715,-300.0,0.00032876,14]
[377639737,1754472645724,-400.0,0.00032876,14]
[377639738,1754472645735,-400.0,0.00032876,14]
[377639739,1754472645746,-487.32,0.00032876,14]
[377639740,1754472645755,-400.0,0.00032876,14]
[377639741,1754472645767,-767.45,0.00032876,14]
[377639742,1754472645789,-400.0,0.00032876,14]
[377639743,1754472645801,-400.0,0.00032876,14]
[377639744,1754472645811,-400.0,0.00032876,14]
[377639746,1754472645821,-400.0,0.00032876,14]
[377639748,1754472645830,-400.0,0.00032876,14]
[377639750,1754472645841,-449.21513889,0.00032876,14]
[377639752,1754472645850,-441.34,0.00032876,14]
[377639753,1754472645859,-151.0,0.00032876,7]
[377639754,1754472645868,-400.0,0.00032876,14]
[377639755,1754472645877,-151.0,0.00032876,7]
[377639756,1754472645887,-244.147265,0.00032876,7]
[377639757,1754472645896,-416.16,0.00032876,14]
[377639758,1754472645906,-400.0,0.00032876,14]
[377639759,1754472645915,-604.13,0.00032876,14]
[377639760,1754472645925,-611.21,0.00032876,14]
[377639761,1754472645935,-400.0,0.00032876,14]
[377639762,1754472645945,-400.0,0.00032876,14]
[377639763,1754472645955,-400.0,0.00032876,14]
[377639764,1754472645965,-400.0,0.00032876,14]
[377639765,1754472645974,-1209.52,0.00032876,14]
[377639766,1754472645984,-1681.93,0.00032876,14]
[377639767,1754472645994,-400.0,0.00032876,14]
[377639768,1754472646004,-151.0,0.00032876,7]
[377639769,1754472646013,-151.028627,0.00032876,7]
[377639770,1754472646022,-1902.08,0.00032876,14]
[377639771,1754472646033,-400.0,0.00032876,14]
[377639772,1754472646043,-2076.14,0.00032876,14]
[377639773,1754472646053,-400.0,0.00032876,14]
[377639774,1754472646062,-498.93,0.00032876,14]
[377639775,1754472646071,-2217.45,0.00032876,14]
[377639776,1754472646081,-400.0,0.00032876,14]
[377639777,1754472646090,-455.49,0.00032876,14]
[377639778,1754472646099,-250.0,0.00032876,14]
[377639779,1754472646109,-448.92,0.00032876,14]
[377639780,1754472646121,-400.0,0.00032876,14]
[377639781,1754472646131,-400.0,0.00032876,14]
[377639782,1754472646143,-586.93,0.00032876,14]
[377639783,1754472646154,-400.0,0.00032876,14]
[377639784,1754472646164,-151.0,0.00032876,7]
[377639785,1754472646174,-151.0,0.00032876,7]
[377639786,1754472646184,-682.46,0.00032876,14]
[377639787,1754472646194,-182.198645,0.00032876,7]
[377639788,1754472646214,-400.0,0.00032876,14]
[377639789,1754472646225,-400.0,0.00032876,14]
[377639790,1754472646235,-400.0,0.00032876,14]
[377639791,1754472646244,-151.0,0.00032876,7]
[377639792,1754472646253,-400.0,0.00032876,14]
[377639793,1754472646262,-151.0,0.00032876,7]
[377639794,1754472646275,-151.0,0.00032876,7]
[377639795,1754472646287,-151.0,0.00032876,7]
[377639796,1754472646296,-904.06,0.00032876,14]
[377639797,1754472646305,-151.0,0.00032876,7]
[377639798,1754472646317,-151.0,0.00032876,7]
[377639799,1754472646328,-151.0,0.00032876,7]
[377639800,1754472646338,-400.0,0.00032876,14]
[377639801,1754472646348,-151.0,0.00032876,7]
[377639802,1754472646357,-151.0,0.00032876,7]
[377639803,1754472646366,-151.0,0.00032876,7]
[377639804,1754472646376,-151.0,0.00032876,7]
[377639805,1754472646385,-400.0,0.00032876,14]
[377639806,1754472646394,-400.0,0.00032876,14]
[377639807,1754472646404,-400.0,0.00032876,14]
[377639808,1754472646414,-151.0,0.00032876,7]
[377639809,1754472646423,-155.83211,0.00032876,7]
[377639810,1754472646433,-400.0,0.00032876,14]
[377639811,1754472646442,-1244.47,0.00032876,14]
[377639812,1754472646451,-400.0,0.00032876,14]
[377639813,1754472646461,-400.0,0.00032876,14]
[377639814,1754472646471,-400.0,0.00032876,14]
[377639815,1754472646481,-400.0,0.00032876,14]
[377639816,1754472646492,-1484.03,0.00032876,14]
[377639817,1754472646501,-555.34,0.00032876,14]
[377639818,1754472646510,-400.0,0.00032876,14]
[377639819,1754472646519,-871.25,0.00032876,14]
[377639820,1754472646530,-1230.77,0.00032876,14]
[377639821,1754472646539,-400.0,0.00032876,5]
[377639822,1754472646549,-824.16,0.00032876,14]
[377639823,1754472646558,-463.46,0.00032876,14]
[377639824,1754472646567,-400.0,0.00032876,14]
[377639825,1754472646577,-1407.72,0.00032876,14]
[377639826,1754472646586,-369.352584,0.00032876,7]
[377639827,1754472646596,-816.35,0.00032876,14]
[377639828,1754472646605,-369.352584,0.00032876,7]
[377639829,1754472646615,-369.352584,0.00032876,7]
[377639830,1754472646624,-400.0,0.00032876,14]
[377639831,1754472646634,-605.7,0.00032876,14]
[377639832,1754472646644,-369.352584,0.00032876,7]
[377639833,1754472646654,-400.0,0.00032876,14]
[377639834,1754472646663,-369.352584,0.00032876,7]
[377639835,1754472646673,-1025.36,0.00032876,14]
[377639836,1754472646682,-369.352584,0.00032876,7]
[377639837,1754472646691,-369.352584,0.00032876,7]
[377639838,1754472646701,-369.352584,0.00032876,7]
[377639839,1754472646710,-400.0,0.00032876,14]
[377639840,1754472646719,-369.352584,0.00032876,7]
[377639841,1754472646729,-369.352584,0.00032876,7]
[377639842,1754472646741,-400.0,0.00032876,14]
[377639843,1754472646751,-369.352584,0.00032876,7]
[377639844,1754472646761,-400.0,0.00032876,14]
[377639845,1754472646772,-369.352584,0.00032876,7]
[377639846,1754472646783,-369.352584,0.00032876,7]
[377639847,1754472646793,-369.352584,0.00032876,7]
[377639848,1754472646803,-400.0,0.00032876,14]
[377639849,1754472646813,-369.352584,0.00032876,7]
[377639850,1754472646822,-369.352584,0.00032876,7]
[377639851,1754472646831,-369.352584,0.00032876,7]
[377639852,1754472646843,-461.51991749,0.00032876,14]
[377639853,1754472646853,-400.0,0.00032876,14]
[377639854,1754472646863,-369.352581,0.00032876,7]
[377639855,1754472646875,-702.0,0.00032876,14]
[377639856,1754472646884,-1750.21,0.00032876,14]
[377639857,1754472646895,-400.0,0.00032876,14]
[377639858,1754472646906,-660.99,0.00032876,14]
[377639859,1754472646916,-400.0,0.00032876,14]
[377639860,1754472646927,-400.0,0.00032876,14]
[377639861,1754472646938,-400.0,0.00032876,14]
[377639862,1754472646948,-1345.2,0.00032876,14]
[377639863,1754472646957,-648.16,0.00032876,14]
[377639864,1754472646967,-400.0,0.00032876,14]
[377639865,1754472646976,-400.0,0.00032876,14]
[377639866,1754472646986,-336.96930012,0.00032876,7]
[377639867,1754472646995,-844.85,0.00032876,14]
[377639868,1754472647004,-1358.95,0.00032876,14]
[377639869,1754472647013,-2545.74,0.00032876,14]
[377639870,1754472647023,-1868.33,0.00032876,14]
[377639871,1754472647033,-400.0,0.00032876,14]
[377639872,1754472647043,-400.0,0.00032876,2]
[377639873,1754472647052,-2042.75,0.00032876,14]
[377639874,1754472647062,-151.0,0.00032876,2]
[377639875,1754472647071,-151.0,0.00032876,2]
[377639876,1754472647080,-151.0,0.00032876,2]
[377639877,1754472647090,-296.379126,0.00032876,2]
[377639878,1754472647100,-2105.19,0.00032876,14]
[377639879,1754472647109,-151.0,0.00032876,7]
[377639880,1754472647118,-151.0,0.00032876,7]
[377639881,1754472647128,-400.0,0.00032876,14]
[377639882,1754472647137,-151.0,0.00032876,7]
[377639883,1754472647146,-151.0,0.00032876,7]
[377639884,1754472647155,-151.0,0.00032876,7]
[377639885,1754472647166,-151.0,0.00032876,7]
[377639886,1754472647176,-400.0,0.00032876,14]
[377639887,1754472647185,-151.0,0.00032876,7]
[377639888,1754472647195,-922.75,0.00032876,14]
[377639889,1754472647204,-151.0,0.00032876,7]
[377639890,1754472647213,-159.244888,0.00032876,7]
[377639891,1754472647223,-402.71,0.00032876,14]
[377639892,1754472647234,-151.0,0.00032876,7]
[377639893,1754472647244,-151.0,0.00032876,7]
[377639894,1754472647253,-151.0,0.00032876,7]
[377639895,1754472647263,-151.0,0.00032876,7]
[377639896,1754472647276,-400.0,0.00032876,14]
[377639897,1754472647286,-1507.89,0.00032876,14]
[377639898,1754472647296,-151.0,0.00032876,7]
[377639899,1754472647305,-151.0,0.00032876,7]
[377639900,1754472647316,-151.0,0.00032876,7]
[377639901,1754472647325,-151.0,0.00032876,7]
[377639902,1754472647335,-556.68,0.00032876,14]
[377639903,1754472647344,-151.0,0.00032876,7]
[377639904,1754472647357,-1801.11,0.00032876,14]
[377639905,1754472647367,-612.98,0.00032876,14]
[377639906,1754472647377,-972.15,0.00032876,14]
[377639907,1754472647387,-1302.41,0.00032876,14]
[377639908,1754472647398,-732.42,0.00032876,14]
[377639909,1754472647408,-400.0,0.00032876,14]
[377639910,1754472647418,-400.0,0.00032876,2]
[377639911,1754472647427,-400.0,0.00032876,14]
[377639912,1754472647439,-400.0,0.00032876,14]
[377639913,1754472647448,-945.59,0.00032876,14]
[377639914,1754472647458,-400.0,0.00032876,14]
[377639915,1754472647467,-1354.66,0.00032876,14]
[377639916,1754472647477,-500.0,0.00032876,14]
[377639917,1754472647487,-400.0,0.00032876,14]
[377639918,1754472647496,-400.0,0.00032876,14]
[377639919,1754472647506,-400.0,0.00032876,14]
[377639920,1754472647516,-1162.6,0.00032876,14]
[377639921,1754472647526,-400.0,0.00032876,14]
[377639922,1754472647537,-400.0,0.00032876,14]
[377639923,1754472647547,-2200.13,0.00032876,14]
[377639924,1754472647557,-1758.19,0.00032876,14]
[377639925,1754472647566,-654.52,0.00032876,14]
[377639926,1754472647576,-848.8,0.00032876,14]
[377639927,1754472647586,-400.0,0.00032876,14]
[377639928,1754472647595,-400.0,0.00032876,14]
[377639929,1754472647605,-653.25,0.00032876,14]
[377639930,1754472647615,-939.78,0.00032876,14]
[377639931,1754472647625,-443.13,0.00032876,14]
[377639932,1754472647634,-400.0,0.00032876,14]
[377639933,1754472647644,-400.0,0.00032876,14]
[377639934,1754472647653,-1019.45,0.00032876,14]
[377639935,1754472647663,-400.0,0.00032876,14]
[377639936,1754472647672,-1784.35,0.00032876,14]
[377639937,1754472647682,-400.0,0.00032876,14]
[377639938,1754472647692,-739.19,0.00032876,14]
[377639939,1754472647701,-918.76,0.00032876,14]
[377639940,1754472647710,-401.0553281,0.00032876,14]
[377639941,1754472647719,-437.28,0.00032876,14]
[377639942,1754472647730,-918.76,0.00032876,14]
[377639943,1754472647740,-918.76,0.00032876,14]
[377639944,1754472647749,-918.76,0.00032876,14]
[377639945,1754472647759,-918.76,0.00032876,14]
[377639946,1754472647769,-918.76,0.00032876,14]
[377639947,1754472647778,-918.76,0.00032876,14]
[377639948,1754472647787,-918.76,0.00032876,14]
[377639949,1754472647797,-918.76,0.00032876,14]
[377639950,1754472647808,-400.0,0.00032876,14]
[377639951,1754472647818,-400.0,0.00032876,14]
[377639952,1754472647829,-400.0,0.00032876,14]
[377639953,1754472647838,-450.6,0.00032876,14]
[377639954,1754472647850,-400.0,0.00032876,14]
[377639955,1754472647860,-501.58424547,0.00032876,14]
[377639956,1754472647870,-1085.77,0.00032876,14]
[377639957,1754472647880,-956.07,0.00032876,14]
[377639958,1754472647889,-463.63135648,0.00032876,14]
[377639959,1754472647900,-1608.71,0.00032876,14]
[377639960,1754472647909,-917.72,0.00032876,14]
[377639961,1754472647919,-400.0,0.00032876,14]
[377639962,1754472647929,-400.0,0.00032876,14]
[377639963,1754472647939,-400.0,0.00032876,14]
[377639964,1754472647948,-400.0,0.00032876,14]
[377639965,1754472647958,-401.74923344,0.00032876,14]
[377639966,1754472647967,-400.0,0.00032876,14]
[377639967,1754472648235,-460.46,0.00032876,14]
[377639968,1754472648244,-400.0,0.00032876,7]
[377639969,1754472648254,-2018.74,0.00032876,14]
[377639970,1754472648264,-912.8,0.00032876,14]
[377639971,1754472648277,-516.78,0.00032876,14]
[377639972,1754472648287,-1429.21,0.00032876,14]
[377639973,1754472648297,-400.0,0.00032876,14]
[377639974,1754472648307,-400.0,0.00032876,14]
[377639975,1754472648318,-400.0,0.00032876,14]
[377639976,1754472648327,-400.0,0.00032876,14]
[377639977,1754472648337,-537.06,0.00032876,14]
[377639978,1754472648347,-537.06,0.00032876,14]
[377639979,1754472648357,-537.06,0.00032876,14]
[377639980,1754472648366,-500.0,0.00032876,14]
[377639981,1754472648376,-537.06,0.00032876,14]
[377639982,1754472648385,-1693.17,0.00032876,14]
[377639983,1754472648395,-537.06,0.00032876,14]
[377639984,1754472648405,-400.0,0.00032876,14]
[377639985,1754472648414,-482.3,0.00032876,14]
[377639986,1754472648424,-658.07,0.00032876,14]
[377639987,1754472648434,-400.0,0.00032876,14]
[377639988,1754472648443,-1204.24,0.00032876,14]
[377639989,1754472648453,-486.01,0.00032876,14]
[377639990,1754472648462,-412.96,0.00032876,14]
[377639991,1754472648471,-2434.11,0.00032876,14]
[377639992,1754472648481,-151.0,0.00032876,7]
[377639993,1754472648491,-400.0,0.00032876,14]
[377639994,1754472648500,-400.0,0.00032876,14]
[377639995,1754472648510,-151.0,0.00032876,7]
[377639996,1754472648519,-720.78,0.00032876,14]
[377639997,1754472648530,-400.0,0.00032876,14]
[377639998,1754472648539,-151.0,0.00032876,7]
[377639999,1754472648549,-151.0,0.00032876,7]
[377640000,1754472648559,-151.0,0.00032876,7]
[377640001,1754472648569,-151.0,0.00032876,7]
[377640002,1754472648579,-151.0,0.00032876,7]
[377640003,1754472648589,-151.0,0.00032876,7]
[377640004,1754472648598,-151.0,0.00032876,7]
[377640005,1754472648608,-400.0,0.00032876,14]
[377640006,1754472648617,-1961.2,0.00032876,14]
[377640007,1754472648627,-462.81135738,0.00032876,14]
[377640008,1754472648636,-400.0,0.00032876,14]
[377640009,1754472648645,-151.0,0.00032876,7]